bitfinex/quotes_BTCUSD_20250529
["timestamp","ask_amount","ask_price","bid_price","bid_amount"]
[1748484031877,0.06421058,108130.0,108120.0,1.27151873]
[1748484032103,0.11025143,108130.0,108120.0,0.71698893]
[1748484032343,0.11025143,108130.0,108120.0,0.79916]
[1748484034651,0.11025143,108130.0,108120.0,0.51321167]
[1748484034652,0.09395143,108130.0,108120.0,0.51321167]
[1748484034869,0.09395143,108130.0,108120.0,0.50456]
[1748484035086,0.09395143,108130.0,108120.0,0.51321167]
[1748484035305,0.09395143,108130.0,108120.0,0.50456]
[1748484036407,0.07395143,108130.0,108120.0,0.51321368]
[1748484036633,0.07395143,108130.0,108120.0,0.50456]
[1748484036856,0.09045143,108130.0,108120.0,0.50456]
[1748484037966,0.09045143,108130.0,108120.0,0.51320568]
[1748484038181,0.07395143,108130.0,108120.0,0.51320565]
[1748484038864,0.07395143,108130.0,108120.0,0.5132053]
[1748484039090,0.07395143,108130.0,108120.0,0.51320533]
[1748484039976,0.35299143,108130.0,108120.0,0.51320533]
[1748484040197,0.35299143,108130.0,108120.0,0.51320189]
[1748484040411,0.35299143,108130.0,108120.0,0.52066]
[1748484040625,0.35299143,108130.0,108120.0,0.85861585]
[1748484041914,0.35299143,108130.0,108120.0,0.52066]
[1748484042560,0.69299143,108130.0,108120.0,0.52066]
[1748484043677,0.83474339,108130.0,108120.0,0.52066]
[1748484044540,0.49474339,108130.0,108120.0,0.52066]
[1748484046303,0.20050339,108130.0,108120.0,0.52066]
[1748484046523,0.49474339,108130.0,108120.0,0.53626]
[1748484046949,0.49474339,108130.0,108120.0,0.13694]
[1748484048024,0.49474339,108130.0,108120.0,0.12134]
[1748484050658,0.47474339,108130.0,108120.0,0.12134]
[1748484052159,0.18050339,108130.0,108120.0,0.47509585]
[1748484052375,0.47470339,108130.0,108120.0,0.47509585]
[1748484052606,0.47470339,108130.0,108120.0,0.13714]
[1748484056384,0.47470339,108130.0,108120.0,0.10524]
[1748484057064,0.48924424,108130.0,108120.0,0.012]
[1748484057289,0.48924424,108130.0,108120.0,0.10524]
[1748484057723,0.46924424,108130.0,108120.0,0.10524]
[1748484059739,0.46924424,108130.0,108120.0,0.012]
[1748484059956,0.46924424,108130.0,108120.0,0.10524]
[1748484060384,0.46920424,108130.0,108120.0,0.10524]
[1748484060598,0.46920424,108130.0,108120.0,0.12054]
[1748484062399,0.46920424,108130.0,108120.0,0.13564]
[1748484064718,0.44920424,108130.0,108120.0,0.13564]
[1748484064941,0.44920424,108130.0,108120.0,0.53496]
[1748484065162,0.44920424,108130.0,108120.0,0.51986]
[1748484066115,0.44920424,108130.0,108120.0,0.52850059]
[1748484066801,0.44920424,108130.0,108120.0,0.52850065]
[1748484067023,0.44920424,108130.0,108120.0,0.51986]
[1748484067248,0.44920424,108130.0,108120.0,0.52850065]
[1748484067731,0.44920424,108130.0,108120.0,0.5285018]
[1748484068166,0.44920424,108130.0,108120.0,0.52850226]
[1748484068397,0.44920424,108130.0,108120.0,0.51986]
[1748484068624,0.44920424,108130.0,108120.0,0.51320205]
[1748484068845,0.44920424,108130.0,108120.0,0.51320207]
[1748484069077,0.44920424,108130.0,108120.0,0.51320194]
[1748484070449,0.44920424,108130.0,108120.0,0.51312194]
[1748484071078,0.44920424,108130.0,108120.0,0.50448]
[1748484071289,0.44920424,108130.0,108120.0,0.51311758]
[1748484071503,0.44920424,108130.0,108120.0,0.51311451]
[1748484071711,0.42920424,108130.0,108120.0,0.51311451]
[1748484071918,0.42920424,108130.0,108120.0,0.51311317]
[1748484072353,0.42920424,108130.0,108120.0,0.50448]
[1748484072567,0.42916424,108130.0,108120.0,0.85165271]
[1748484072784,0.13504424,108130.0,108120.0,0.87342094]
[1748484073008,0.13504424,108130.0,108120.0,1.21196188]
[1748484073229,0.12050339,108130.0,108120.0,1.21196188]
[1748484073449,0.12050339,108130.0,108120.0,0.87342094]
[1748484073677,0.12050339,108130.0,108120.0,0.54351145]
[1748484073897,0.12050339,108130.0,108120.0,0.53488]
[1748484074592,0.12050339,108130.0,108120.0,0.87342094]
[1748484074810,0.12050339,108130.0,108120.0,0.88205289]
[1748484075243,0.12050339,108130.0,108120.0,0.88205295]
[1748484075461,0.12050339,108130.0,108120.0,0.88205241]
[1748484075672,0.12050339,108130.0,108120.0,0.87342094]
[1748484075910,0.12050339,108130.0,108120.0,0.88205225]
[1748484076123,0.12050339,108130.0,108120.0,0.53488]
[1748484077223,0.41458339,108130.0,108120.0,0.87341305]
[1748484077427,0.41458339,108130.0,108120.0,0.88204393]
[1748484077648,0.41458339,108130.0,108120.0,0.87341305]
[1748484078067,0.41458339,108130.0,108120.0,0.88204392]
[1748484078270,0.41458339,108130.0,108120.0,0.88204393]
[1748484078480,0.12050339,108130.0,108120.0,0.54351088]
[1748484078893,0.10050339,108130.0,108120.0,0.543511]
[1748484079102,0.10050339,108130.0,108120.0,0.54351109]
[1748484079884,0.10050339,108130.0,108120.0,0.51311133]
[1748484079885,0.14764424,108130.0,108120.0,0.51311133]
[1748484080122,0.14764424,108130.0,108120.0,0.51311176]
[1748484080359,0.13104424,108130.0,108120.0,0.51311176]
[1748484080591,0.13104424,108130.0,108120.0,0.51311177]
[1748484080822,0.13104424,108130.0,108120.0,0.50448]
[1748484081053,0.13104424,108130.0,108120.0,0.51311154]
[1748484082399,0.13104424,108130.0,108120.0,0.50448]
[1748484082599,0.13104424,108130.0,108120.0,0.51311142]
[1748484083222,0.13104424,108130.0,108120.0,0.51311127]
[1748484083431,0.13104424,108130.0,108120.0,0.50448]
[1748484083637,0.13104424,108130.0,108120.0,0.51311049]
[1748484083857,0.13104424,108130.0,108120.0,0.50448]
[1748484084068,0.13104424,108130.0,108120.0,0.51310779]
[1748484084482,0.13104424,108130.0,108120.0,0.51310786]
[1748484084969,0.14714424,108130.0,108120.0,0.51310786]
[1748484085189,0.14714424,108130.0,108120.0,0.51310814]
[1748484085619,0.14714424,108130.0,108120.0,0.51310817]
[1748484085828,0.14714424,108130.0,108120.0,0.41994817]
[1748484086029,0.12714424,108130.0,108120.0,0.50448]
[1748484086486,0.12714424,108130.0,108120.0,0.51310767]
[1748484086696,0.11104424,108130.0,108120.0,0.51310767]
[1748484087126,0.09504424,108130.0,108120.0,0.50448]
[1748484087338,0.09504424,108130.0,108120.0,0.51310777]
[1748484087544,0.11064424,108130.0,108120.0,0.51310759]
[1748484087764,0.11064424,108130.0,108120.0,0.51310728]
[1748484088199,0.09504424,108130.0,108120.0,0.51310728]
[1748484088625,0.38908424,108130.0,108120.0,0.51310728]
[1748484088906,0.38908424,108130.0,108120.0,0.54520709]
[1748484089140,0.38908424,108130.0,108120.0,0.5452071]
[1748484089357,0.38908424,108130.0,108120.0,0.5452073]
[1748484089582,0.38908424,108130.0,108120.0,0.5131073]
[1748484090687,0.38908424,108130.0,108120.0,0.51310678]
[1748484091344,0.38908424,108130.0,108120.0,0.50448]
[1748484091778,0.38908424,108130.0,108120.0,0.1137869]
[1748484092463,0.38908424,108130.0,108120.0,0.11378678]
[1748484092938,0.36908424,108130.0,108120.0,0.11378683]
[1748484093179,0.36908424,108130.0,108120.0,0.12958683]
[1748484093612,0.36908424,108130.0,108120.0,0.14478683]
[1748484094246,0.36908424,108130.0,108120.0,0.14478662]
[1748484094462,0.36908424,108130.0,108120.0,0.14478663]
[1748484094898,0.36908424,108130.0,108120.0,0.14478686]
[1748484095110,0.07504424,108130.0,108120.0,0.14478686]
[1748484095357,0.36908424,108130.0,108120.0,0.14478686]
[1748484096006,0.36908424,108130.0,108120.0,0.14478701]
[1748484096927,0.36908424,108130.0,108120.0,0.13616]
[1748484097568,0.36908424,108130.0,108120.0,0.14478752]
[1748484097996,0.36908424,108130.0,108120.0,0.47469523]
[1748484098216,0.36908424,108130.0,108120.0,0.4833221]
[1748484098635,0.06050339,108130.0,108120.0,0.82185733]
[1748484098855,0.06050339,108130.0,108120.0,0.47469523]
[1748484099065,0.06050339,108130.0,108120.0,0.4833216]
[1748484099919,0.06050339,108130.0,108120.0,0.56574918]
[1748484100126,0.04050339,108130.0,108120.0,0.57437513]
[1748484101041,0.04050339,108130.0,108120.0,0.56574918]
[1748484101262,0.04050339,108130.0,108120.0,0.57437378]
[1748484101478,0.04050339,108130.0,108120.0,0.56574918]
[1748484101923,0.04050339,108130.0,108120.0,0.91290888]
[1748484102169,0.04050339,108130.0,108120.0,0.90428441]
[1748484102609,0.04050339,108130.0,108120.0,0.23583928]
[1748484102826,0.04050339,108130.0,108120.0,0.57437454]
[1748484103046,0.04050339,108130.0,108120.0,0.56574918]
[1748484103265,0.04050339,108130.0,108120.0,0.57437425]
[1748484103479,0.04050339,108130.0,108120.0,0.56574918]
[1748484103693,0.04050339,108130.0,108120.0,0.22721395]
[1748484103915,0.04050339,108130.0,108120.0,0.56574918]
[1748484104867,0.04050339,108130.0,108120.0,0.57437385]
[1748484105118,0.04050339,108130.0,108120.0,0.90428441]
[1748484105340,0.04975151,108130.0,108120.0,1.10776159]
[1748484105574,0.05899938,108130.0,108120.0,1.39311295]
[1748484105796,0.04975151,108130.0,108120.0,1.19888441]
[1748484106016,0.04975151,108130.0,108120.0,0.86025456]
[1748484106249,0.04050339,108130.0,108120.0,0.86025456]
[1748484106468,0.04050339,108130.0,108120.0,0.52181395]
[1748484106686,0.04050339,108130.0,108120.0,0.86887867]
[1748484106900,0.04050339,108130.0,108120.0,0.86025456]
[1748484107585,0.48544172,108140.0,108130.0,0.0151]
[1748484107806,0.48544172,108140.0,108130.0,0.10615395]
[1748484108329,0.48544172,108140.0,108130.0,0.11478004]
[1748484108569,0.48544172,108140.0,108130.0,0.10615395]
[1748484109034,0.48544172,108140.0,108130.0,0.19923395]
[1748484109769,0.48644172,108140.0,108130.0,0.22306134]
[1748484110420,0.48644172,108140.0,108130.0,0.22406134]
[1748484110860,0.48644172,108140.0,108130.0,0.21543395]
[1748484111072,0.48644172,108140.0,108130.0,0.22406139]
[1748484111735,0.48640172,108140.0,108130.0,0.22406139]
[1748484111960,0.48640172,108140.0,108130.0,0.22405614]
[1748484112469,0.48640172,108140.0,108130.0,0.21543395]
[1748484112681,0.48640172,108140.0,108130.0,0.22405596]
[1748484112895,0.48640172,108140.0,108130.0,0.22405345]
[1748484113315,0.48640172,108140.0,108130.0,0.22405344]
[1748484113531,0.48640172,108140.0,108130.0,0.22405303]
[1748484113966,0.48640172,108140.0,108130.0,0.21543395]
[1748484114178,0.48640172,108140.0,108130.0,0.22405162]
[1748484114390,0.48640172,108140.0,108130.0,0.22405139]
[1748484114612,0.19244172,108140.0,108130.0,0.22405047]
[1748484114842,0.48636172,108140.0,108130.0,0.22405047]
[1748484115247,0.46636172,108140.0,108130.0,0.22405047]
[1748484115667,0.46636172,108140.0,108130.0,0.56248976]
[1748484115878,0.46636172,108140.0,108130.0,0.95319456]
[1748484116107,0.46636172,108140.0,108130.0,0.96180976]
[1748484116304,0.46636172,108140.0,108130.0,0.95319456]
[1748484116927,0.46636172,108140.0,108130.0,0.61475395]
[1748484117777,0.46636172,108140.0,108130.0,0.62336839]
[1748484117973,0.46636172,108140.0,108130.0,0.62336849]
[1748484118386,0.46636172,108140.0,108130.0,0.61475395]
[1748484119161,0.17244172,108140.0,108130.0,0.61475395]
[1748484119370,0.46636172,108140.0,108130.0,0.61475395]
[1748484120668,0.46636172,108140.0,108130.0,0.21543395]
[1748484120893,0.46636172,108140.0,108130.0,0.22404769]
[1748484121131,0.46636172,108140.0,108130.0,0.21543395]
[1748484121357,0.46558484,108140.0,108130.0,0.22404709]
[1748484121557,0.46558484,108140.0,108130.0,0.22404684]
[1748484122071,0.17166484,108140.0,108130.0,0.22404684]
[1748484122303,0.46554484,108140.0,108130.0,0.56248745]
[1748484122529,0.44554484,108140.0,108130.0,0.21543395]
[1748484122726,0.44554484,108140.0,108130.0,0.22404707]
[1748484122885,0.44554484,108140.0,108130.0,0.22404709]
[1748484123084,0.44554484,108140.0,108130.0,0.21543395]
[1748484123357,0.44554484,108140.0,108130.0,0.22404736]
[1748484123785,0.44554484,108140.0,108130.0,0.22404816]
[1748484123993,0.44554484,108140.0,108130.0,0.2240482]
[1748484124339,0.44554484,108140.0,108130.0,0.22404962]
[1748484125309,0.44554484,108140.0,108130.0,0.22405295]
[1748484125528,0.44554484,108140.0,108130.0,0.117799]
[1748484125733,0.47508569,108140.0,108130.0,0.102699]
[1748484125936,0.47508569,108140.0,108130.0,0.10270182]
[1748484126362,0.47508569,108140.0,108130.0,0.10270187]
[1748484126561,0.82922417,108140.0,108130.0,0.00962232]
[1748484126812,1.17425593,108140.0,108130.0,0.10270232]
[1748484127016,0.83572236,108140.0,108130.0,0.10270903]
[1748484127224,1.17426084,108140.0,108130.0,0.10270903]
[1748484127761,1.17426084,108140.0,108130.0,0.10270646]
[1748484128385,1.17425743,108140.0,108130.0,0.10270497]
[1748484128596,1.17425743,108140.0,108130.0,0.09408]
[1748484128813,1.26531138,108140.0,108130.0,0.00962492]
[1748484129038,1.26531151,108140.0,108130.0,0.10270492]
[1748484129248,1.26531151,108140.0,108130.0,0.10270459]
[1748484129249,0.92027812,108140.0,108130.0,0.10270459]
[1748484129493,0.90677137,108140.0,108130.0,0.10270459]
[1748484129699,1.24530985,108140.0,108130.0,0.10270459]
[1748484129907,0.56823289,108140.0,108130.0,0.10270459]
[1748484130118,0.90681712,108140.0,108130.0,0.09408]
[1748484130332,0.90681712,108140.0,108130.0,0.10270207]
[1748484130550,0.9068162,108140.0,108130.0,0.10262085]
[1748484130800,0.9068162,108140.0,108130.0,0.094]
[1748484130801,0.90032387,108140.0,108130.0,0.094]
[1748484131019,0.9068162,108140.0,108130.0,0.10262018]
[1748484131271,0.9068162,108140.0,108130.0,0.094]
[1748484131512,0.9068162,108140.0,108130.0,0.10262003]
[1748484131710,0.9068162,108140.0,108130.0,0.10261919]
[1748484131928,0.90681562,108140.0,108130.0,0.10261919]
[1748484132353,0.90681562,108140.0,108130.0,0.10261889]
[1748484132569,0.90681562,108140.0,108130.0,0.10261812]
[1748484132570,0.90681525,108140.0,108130.0,0.10261812]
[1748484132819,0.90032387,108140.0,108130.0,0.10261774]
[1748484133023,0.90681525,108140.0,108130.0,0.10261769]
[1748484133263,0.90681525,108140.0,108130.0,0.10261768]
[1748484133479,0.90681501,108140.0,108130.0,0.10261768]
[1748484133690,0.906815,108140.0,108130.0,0.094]
[1748484133915,0.906815,108140.0,108130.0,0.10261735]
[1748484134131,0.906815,108140.0,108130.0,0.001]
[1748484134349,0.90032387,108140.0,108130.0,0.094]
[1748484134575,0.906815,108140.0,108130.0,0.094]
[1748484135069,0.56173964,108140.0,108130.0,0.10261732]
[1748484135281,0.90032387,108140.0,108130.0,0.10261733]
[1748484135737,1.24032387,108140.0,108130.0,0.01823467]
[1748484135974,1.24032387,108140.0,108130.0,0.11123489]
[1748484136216,1.24032387,108140.0,108130.0,0.10261733]
[1748484136427,1.24032387,108140.0,108130.0,0.11123436]
[1748484136648,1.22032387,108140.0,108130.0,0.10261733]
[1748484136933,1.22032387,108140.0,108130.0,0.11123491]
[1748484137150,1.22032387,108140.0,108130.0,0.10261733]
[1748484137151,1.22028387,108140.0,108130.0,0.10261733]
[1748484137361,1.22677527,108140.0,108130.0,0.10261733]
[1748484137568,1.22028387,108140.0,108130.0,0.10261733]
[1748484138228,1.22677536,108140.0,108130.0,0.10261733]
[1748484138444,1.22028387,108140.0,108130.0,0.10261733]
[1748484138649,1.22677536,108140.0,108130.0,0.11123534]
[1748484139110,1.22677536,108140.0,108130.0,0.10261733]
[1748484139536,1.22677537,108140.0,108130.0,0.10261733]
[1748484139751,1.22028387,108140.0,108130.0,0.10261733]
[1748484139968,1.22677536,108140.0,108130.0,0.11123538]
[1748484140198,0.88819113,108140.0,108130.0,0.10261733]
[1748484140419,1.22677536,108140.0,108130.0,0.1112348]
[1748484140627,1.22677536,108140.0,108130.0,0.10261733]
[1748484141069,1.23326719,108140.0,108130.0,0.10261733]
[1748484141303,1.22677536,108140.0,108130.0,0.10261733]
[1748484142436,1.23326714,108140.0,108130.0,0.10261733]
[1748484142666,1.22677536,108140.0,108130.0,0.10261733]
[1748484143148,0.88819113,108140.0,108130.0,0.10261733]
[1748484143387,0.89468286,108140.0,108130.0,0.10261733]
[1748484143610,1.20677536,108140.0,108130.0,0.10261733]
[1748484144311,0.86819113,108140.0,108130.0,0.10261733]
[1748484144536,1.20677536,108140.0,108130.0,0.10261733]
[1748484144769,1.20677536,108140.0,108130.0,0.00961733]
[1748484144999,1.21326712,108140.0,108130.0,0.00961733]
[1748484145226,1.2132673,108140.0,108130.0,0.00961733]
[1748484145448,1.20677536,108140.0,108130.0,0.00961733]
[1748484146396,1.22434155,108140.0,108130.0,0.00961733]
[1748484146652,1.24083404,108140.0,108130.0,0.00961733]
[1748484146887,1.3253955,108140.0,108130.0,0.00961733]
[1748484147123,1.33088809,108140.0,108130.0,0.00961733]
[1748484147323,1.44587252,108140.0,108130.0,0.00961733]
[1748484147537,1.4068314,108140.0,108130.0,0.00961733]
[1748484147754,1.46730574,108140.0,108130.0,0.00961733]
[1748484148211,1.46730574,108140.0,108130.0,0.00861733]
[1748484148482,1.43109266,108140.0,108130.0,0.00861733]
[1748484148703,1.41164688,108140.0,108130.0,0.00961733]
[1748484148931,1.40515415,108140.0,108130.0,0.00961733]
[1748484149164,1.41163758,108140.0,108130.0,0.00861733]
[1748484149397,1.40715415,108140.0,108130.0,0.00861733]
[1748484149859,1.39715415,108140.0,108130.0,0.00861733]
[1748484150622,1.37715415,108140.0,108130.0,0.00861733]
[1748484151068,1.38363759,108140.0,108130.0,0.00861733]
[1748484151292,1.37715415,108140.0,108130.0,0.00861733]
[1748484151750,1.29258364,108140.0,108130.0,0.00861733]
[1748484152221,1.30258364,108140.0,108130.0,0.00861733]
[1748484152449,1.30258339,108140.0,108130.0,0.00861733]
[1748484152676,1.2961002,108140.0,108130.0,0.00861733]
[1748484152925,1.302579,108140.0,108130.0,0.00861733]
[1748484153631,1.39363295,108140.0,108130.0,0.00861733]
[1748484153885,1.97221718,108140.0,108130.0,0.00861733]
[1748484154135,2.0703399,108140.0,108130.0,0.00861733]
[1748484154407,0.59421049,108130.0,108120.0,0.005]
[1748484154677,1.07247966,108130.0,108120.0,0.005]
[1748484154898,1.07247956,108130.0,108120.0,0.005]
[1748484155126,1.16331457,108130.0,108120.0,0.005]
[1748484155574,1.07247956,108130.0,108120.0,0.005]
[1748484155799,1.10124181,108130.0,108120.0,0.005]
[1748484156018,1.10324063,108130.0,108120.0,0.005]
[1748484156246,1.02096901,108130.0,108120.0,0.005]
[1748484156469,1.37124015,108130.0,108120.0,0.005]
[1748484156718,1.3101838,108130.0,108120.0,0.005]
[1748484157163,1.3601838,108130.0,108120.0,0.005]
[1748484157395,1.467738,108130.0,108120.0,0.005]
[1748484157839,1.47773801,108130.0,108120.0,0.005]
[1748484158082,1.48879435,108130.0,108120.0,0.005]
[1748484158320,1.48879511,108130.0,108120.0,0.005]
[1748484158547,1.47773877,108130.0,108120.0,0.005]
[1748484158773,1.47773878,108130.0,108120.0,0.005]
[1748484159252,1.47773879,108130.0,108120.0,0.005]
[1748484159490,1.47774003,108130.0,108120.0,0.005]
[1748484161090,1.1391558,108130.0,108120.0,0.005]
[1748484161322,1.04162844,108130.0,108120.0,0.005]
[1748484161542,1.38669098,108130.0,108120.0,0.005]
[1748484161798,1.36371267,108130.0,108120.0,0.005]
[1748484162034,1.36019098,108130.0,108120.0,0.005]
[1748484162253,1.00109098,108130.0,108120.0,0.005]
[1748484162471,1.29489098,108130.0,108120.0,0.005]
[1748484162678,1.2948964,108130.0,108120.0,0.005]
[1748484163104,1.29489639,108130.0,108120.0,0.005]
[1748484163336,1.29489638,108130.0,108120.0,0.0214]
[1748484163558,1.29490819,108130.0,108120.0,0.0214]
[1748484163982,1.31714419,108130.0,108120.0,0.0214]
[1748484164417,1.26714443,108130.0,108120.0,0.0214]
[1748484164637,0.97334443,108130.0,108120.0,0.0214]
[1748484164861,0.96684867,108130.0,108120.0,0.0373]
[1748484165077,1.26710422,108130.0,108120.0,0.0373]
[1748484165293,1.2671041,108130.0,108120.0,0.0373]
[1748484165801,1.26710379,108130.0,108120.0,0.0373]
[1748484166923,1.26710358,108130.0,108120.0,0.0373]
[1748484167574,1.35815753,108130.0,108120.0,0.0373]
[1748484167788,1.26710358,108130.0,108120.0,0.0373]
[1748484168672,1.26710338,108130.0,108120.0,0.0373]
[1748484170525,1.26710337,108130.0,108120.0,0.0373]
[1748484170746,1.26710336,108130.0,108120.0,0.0373]
[1748484172706,1.26710338,108130.0,108120.0,0.0373]
[1748484173180,1.26710339,108130.0,108120.0,0.0373]
[1748484173631,1.27817734,108130.0,108120.0,0.0373]
[1748484174471,1.27817738,108130.0,108120.0,0.0373]
[1748484175311,1.27168259,108130.0,108120.0,0.0373]
[1748484175518,1.27817743,108130.0,108120.0,0.0373]
[1748484176139,1.27827743,108130.0,108120.0,0.0373]
[1748484176559,1.27827748,108130.0,108120.0,0.0373]
[1748484176983,1.27828782,108130.0,108120.0,0.0373]
[1748484178086,1.27828787,108130.0,108120.0,0.0373]
[1748484178728,1.27828789,108130.0,108120.0,0.0373]
[1748484179351,1.27179293,108130.0,108120.0,0.0373]
[1748484179560,1.27828794,108130.0,108120.0,0.0373]
[1748484180417,1.27828795,108130.0,108120.0,0.0373]
[1748484180644,0.97344369,108130.0,108120.0,0.0373]
[1748484180931,1.27820808,108130.0,108120.0,0.0373]
[1748484181168,1.27171306,108130.0,108120.0,0.0373]
[1748484181598,1.27820813,108130.0,108120.0,0.0373]
[1748484183653,1.2782081,108130.0,108120.0,0.0373]
[1748484183872,1.26712376,108130.0,108120.0,0.0373]
[1748484184082,1.27171308,108130.0,108120.0,0.0214]
[1748484184294,1.27820817,108130.0,108120.0,0.0214]
[1748484185029,1.2782084,108130.0,108120.0,0.0214]
[1748484185436,1.27820874,108130.0,108120.0,0.0214]
[1748484186475,1.27171308,108130.0,108120.0,0.038]
[1748484186680,1.278209,108130.0,108120.0,0.038]
[1748484186885,1.27820906,108130.0,108120.0,0.038]
[1748484187314,1.27820918,108130.0,108120.0,0.038]
[1748484187742,1.27820918,108130.0,108120.0,0.13096]
[1748484187948,1.27820919,108130.0,108120.0,0.13096]
[1748484188394,1.27820958,108130.0,108120.0,0.13096]
[1748484188827,1.27812958,108130.0,108120.0,0.13096]
[1748484189243,1.27812962,108130.0,108120.0,0.13096]
[1748484189452,1.27812998,108130.0,108120.0,0.13096]
[1748484189668,1.27163308,108130.0,108120.0,0.13096]
[1748484189877,1.27813002,108130.0,108120.0,0.13096]
[1748484190489,1.27813048,108130.0,108120.0,0.13096]
[1748484191116,1.27813052,108130.0,108120.0,0.13096]
[1748484192165,1.27813123,108130.0,108120.0,0.13096]
[1748484192582,1.27813126,108130.0,108120.0,0.13096]
[1748484192792,1.27163308,108130.0,108120.0,0.13096]
[1748484193625,1.27813198,108130.0,108120.0,0.13096]
[1748484194053,1.27163308,108130.0,108120.0,0.13096]
[1748484194504,0.2082949,108130.0,108120.0,0.13096]
[1748484194711,0.49077049,108130.0,108120.0,0.13096]
[1748484194917,0.83077049,108130.0,108120.0,0.13096]
[1748484195345,0.83727038,108130.0,108120.0,0.13096]
[1748484195545,0.83727038,108130.0,108120.0,0.46964423]
[1748484195989,0.83727038,108130.0,108120.0,0.13096]
[1748484196425,0.54370662,108130.0,108120.0,0.13096]
[1748484196632,0.83722661,108130.0,108120.0,0.13096]
[1748484196838,0.83722654,108130.0,108120.0,0.46964423]
[1748484197084,0.83722454,108130.0,108120.0,0.46964423]
[1748484197740,0.83073049,108130.0,108120.0,0.46964423]
[1748484197954,0.83722441,108130.0,108120.0,0.46964423]
[1748484198790,0.83722286,108130.0,108120.0,0.46964423]
[1748484199000,0.83073049,108130.0,108120.0,0.46964423]
[1748484199206,0.54370286,108130.0,108120.0,0.46964423]
[1748484199407,0.54370286,108130.0,108120.0,0.80832846]
[1748484199408,0.49073049,108130.0,108120.0,0.80832846]
[1748484199612,0.49073049,108130.0,108120.0,0.46964423]
[1748484199821,0.47073049,108130.0,108120.0,0.46964423]
[1748484200025,0.47997844,108130.0,108120.0,0.46964423]
[1748484203669,0.47997844,108130.0,108120.0,0.13096]
[1748484203919,0.47997844,108130.0,108120.0,0.46964423]
[1748484206766,0.45997844,108130.0,108120.0,0.46964423]
[1748484207446,0.45997844,108130.0,108120.0,0.13096]
[1748484207677,0.45997844,108130.0,108120.0,0.46964423]
[1748484208976,0.45997844,108130.0,108120.0,0.13096]
[1748484209183,0.79866267,108130.0,108120.0,0.038]
[1748484209396,0.79866267,108130.0,108120.0,0.1142]
[1748484209620,0.88971662,108130.0,108120.0,0.1142]
[1748484209837,0.88971662,108130.0,108120.0,0.0214]
[1748484210117,0.88971662,108130.0,108120.0,0.1142]
[1748484210354,1.30196699,108130.0,108120.0,0.0978]
[1748484210577,1.22955662,108130.0,108120.0,0.0978]
[1748484211037,1.23604016,108130.0,108120.0,0.0978]
[1748484211488,1.2360405,108130.0,108120.0,0.0978]
[1748484211683,1.23604083,108130.0,108120.0,0.0978]
[1748484212108,0.8973566,108130.0,108120.0,0.0978]
[1748484212325,0.8973566,108130.0,108120.0,0.1138]
[1748484212988,0.8973566,108130.0,108120.0,0.1303]
[1748484213200,0.89087239,108130.0,108120.0,0.1303]
[1748484213407,0.89735694,108130.0,108120.0,0.1303]
[1748484213829,0.87087239,108130.0,108120.0,0.1303]
[1748484214049,0.87735731,108130.0,108120.0,0.1303]
[1748484214260,0.87735731,108130.0,108120.0,0.1138]
[1748484214682,0.87735769,108130.0,108120.0,0.1138]
[1748484214905,0.87087239,108130.0,108120.0,0.1138]
[1748484215141,0.87735769,108130.0,108120.0,0.1138]
[1748484215375,0.87735769,108130.0,108120.0,0.0978]
[1748484215376,0.87087239,108130.0,108120.0,0.0978]
[1748484216229,0.87735786,108130.0,108120.0,0.0978]
[1748484217108,0.87735786,108130.0,108120.0,0.1134]
[1748484217322,0.87087239,108130.0,108120.0,0.1134]
[1748484217823,0.87735858,108130.0,108120.0,0.1134]
[1748484218043,1.20953048,108130.0,108120.0,0.0978]
[1748484218507,1.23231668,108130.0,108120.0,0.0978]
[1748484218720,1.22583048,108130.0,108120.0,0.0978]
[1748484219595,1.232317,108130.0,108120.0,0.0978]
[1748484219798,1.22583048,108130.0,108120.0,0.0978]
[1748484220658,1.23231745,108130.0,108120.0,0.0978]
[1748484220875,1.23231807,108130.0,108120.0,0.0978]
[1748484221084,1.21883048,108130.0,108120.0,0.0978]
[1748484222359,1.22531895,108130.0,108120.0,0.0978]
[1748484223051,1.21883048,108130.0,108120.0,0.0978]
[1748484223504,1.22531895,108130.0,108120.0,0.0978]
[1748484223709,1.22531881,108130.0,108120.0,0.0978]
[1748484224772,1.21883048,108130.0,108120.0,0.0978]
[1748484224982,1.22531874,108130.0,108120.0,0.0978]
[1748484225193,1.20901874,108130.0,108120.0,0.0978]
[1748484225659,0.87036027,108130.0,108120.0,0.005]
[1748484225878,0.87036027,108130.0,108120.0,0.09764]
[1748484226087,0.87036027,108130.0,108120.0,0.0207]
[1748484226293,0.87036027,108130.0,108120.0,0.11334]
[1748484226741,0.86387239,108130.0,108120.0,0.11334]
[1748484228681,0.87035951,108130.0,108120.0,0.11334]
[1748484228891,0.86387239,108130.0,108120.0,0.11334]
[1748484230025,0.87035953,108130.0,108120.0,0.11334]
[1748484230252,0.86387239,108130.0,108120.0,0.11334]
[1748484231159,0.87035962,108130.0,108120.0,0.11334]
[1748484231369,0.86387239,108130.0,108120.0,0.11334]
[1748484233831,0.87036034,108130.0,108120.0,0.11334]
[1748484234034,1.20252266,108130.0,108120.0,0.11334]
[1748484235109,1.20901136,108130.0,108120.0,0.11334]
[1748484235310,1.20252266,108130.0,108120.0,0.11334]
[1748484235460,1.20901136,108130.0,108120.0,0.11334]
[1748484235678,1.20252266,108130.0,108120.0,0.11334]
[1748484235861,1.20901136,108130.0,108120.0,0.11334]
[1748484236690,1.20901173,108130.0,108120.0,0.11334]
[1748484237184,1.20901306,108130.0,108120.0,0.11334]
[1748484237786,1.20901576,108130.0,108120.0,0.11334]
[1748484238837,1.20252266,108130.0,108120.0,0.12199003]
[1748484239020,1.20252266,108130.0,108120.0,0.12199004]
[1748484239218,1.20902345,108130.0,108120.0,0.12199004]
[1748484240059,1.20902345,108130.0,108120.0,0.12199007]
[1748484240257,1.2201096,108130.0,108120.0,0.12199007]
[1748484240548,1.21360881,108130.0,108120.0,0.13729038]
[1748484240779,1.21360881,108130.0,108120.0,0.12864]
[1748484240989,1.22011814,108130.0,108120.0,0.13729042]
[1748484241618,1.22011814,108130.0,108120.0,0.12199042]
[1748484242036,1.22011815,108130.0,108120.0,0.12199058]
[1748484242247,1.22011814,108130.0,108120.0,0.12199058]
[1748484242688,1.22011814,108130.0,108120.0,0.12199127]
[1748484243312,1.21361735,108130.0,108120.0,0.11334]
[1748484243517,1.22011814,108130.0,108120.0,0.12199142]
[1748484243738,1.22011814,108130.0,108120.0,0.12199185]
[1748484243933,1.21361735,108130.0,108120.0,0.13769184]
[1748484244147,1.22011814,108130.0,108120.0,0.13769184]
[1748484244355,1.21329735,108130.0,108120.0,0.13769184]
[1748484244560,1.21979814,108130.0,108120.0,0.04505184]